fUSD/lending_fUSD_20241011
["ID","MTS","AMOUNT","RATE_DAILY","PERIOD"]
[340148927,1728681039028,-150.0,0.00041928,2]
[340148928,1728681039037,-150.0,0.0004193,2]
[340148929,1728681039047,-150.0,0.00041933,2]
[340148930,1728681039057,-150.0,0.00041937,2]
[340148931,1728681039067,-150.0,0.00041938,2]
[340148932,1728681039076,-150.0,0.00041941,2]
[340148933,1728681039085,-150.0,0.00041946,2]
[340148934,1728681039095,-150.0,0.00041949,2]
[340148935,1728681039104,-150.0,0.00041954,2]
[340148936,1728681039114,-150.0,0.00041959,2]
[340148937,1728681039123,-150.0,0.00041962,2]
[340148938,1728681039133,-150.0,0.00041963,2]
[340148939,1728681039142,-150.0,0.00041965,2]
[340148940,1728681039151,-150.0,0.00041969,2]
[340148941,1728681039161,-150.0,0.00041971,2]
[340148942,1728681039171,-150.0,0.00041971,2]
[340148943,1728681039181,-150.0,0.00041971,2]
[340148944,1728681039190,-150.0,0.00041971,2]
[340148945,1728681039200,-150.0,0.00041972,2]
[340148946,1728681039210,-150.0,0.00041975,2]
[340148947,1728681039219,-150.0,0.0004198,2]
[340148948,1728681039229,-150.0,0.00041982,2]
[340148949,1728681039239,-150.0,0.00041988,2]
[340148950,1728681039249,-150.0,0.00041991,2]
[340148951,1728681039259,-150.0,0.00041993,2]
[340148952,1728681039268,-150.0,0.00041994,2]
[340148953,1728681039278,-150.0,0.00041994,2]
[340148954,1728681039287,-150.0,0.00041996,2]
[340148955,1728681039297,-150.0,0.00041998,2]
[340148956,1728681039306,-150.0,0.00042084,2]
[340148957,1728681039316,-150.0,0.00042111,2]
[340148958,1728681039326,-1846.90944589,0.0004237,8]
[340148959,1728681039337,-2712.34030516,0.0004237,8]
[340148960,1728681039349,-8270.36564238,0.0004237,8]
[340148961,1728681039373,-150.0,0.00041883,2]
[340148962,1728681039383,-150.0,0.00041949,2]
[340148963,1728681039392,-587.83016339,0.0004237,8]
[340148964,1728681039403,-2379.74331437,0.0004237,8]
[340148965,1728681039412,-3708.7363718,0.0004238,8]
[340148966,1728681039431,-150.0,0.00041777,2]
[340148967,1728681039442,-150.0,0.00041919,2]
[340148968,1728681039451,-11685.99999968,0.0004238,8]
[340148971,1728681039852,-1200.0,0.00010699,2]
[340148972,1728681039864,-23440.0158,0.00010699,2]
[340148973,1728681039874,-1000.0,0.00041498,120]
[340148974,1728681039884,-150.0,0.00041725,2]
[340148975,1728681039894,-150.0,0.00041732,2]
[340148976,1728681039904,-150.0,0.00041759,2]
[340148977,1728681039916,-150.0,0.00041765,2]
[340148978,1728681039927,-150.0,0.00041788,2]
[340148979,1728681039938,-150.0,0.00041791,2]
[340148980,1728681039949,-150.0,0.00041797,2]
[340148981,1728681039958,-150.0,0.00041819,2]
[340148982,1728681039967,-150.0,0.0004182,2]
[340148983,1728681039976,-150.0,0.00041821,2]
[340148984,1728681039985,-150.0,0.0004184,2]
[340148985,1728681039995,-150.0,0.00041843,2]
[340148986,1728681040005,-150.0,0.00041847,2]
[340148987,1728681040014,-150.0,0.00041867,2]
[340148988,1728681040024,-150.0,0.00041877,2]
[340148989,1728681040033,-150.0,0.00041878,2]
[340148990,1728681040043,-150.0,0.00041879,2]
[340148991,1728681040052,-150.0,0.0004189,2]
[340148992,1728681040062,-150.0,0.00041892,2]
[340148993,1728681040072,-150.0,0.00041896,2]
[340148994,1728681040081,-150.0,0.00041897,2]
[340148995,1728681040090,-150.0,0.00041898,2]
[340148996,1728681040100,-150.0,0.00041903,2]
[340148997,1728681040109,-150.0,0.00041905,2]
[340148998,1728681040118,-150.0,0.00041908,2]
[340148999,1728681040127,-150.0,0.00041908,2]
[340149000,1728681040137,-150.0,0.00041915,2]
[340149001,1728681040146,-150.0,0.00041921,2]
[340149002,1728681040156,-150.0,0.00041929,2]
[340149003,1728681040165,-150.0,0.00041931,2]
[340149004,1728681040174,-150.0,0.00041933,2]
[340149005,1728681040184,-150.0,0.00041936,2]
[340149006,1728681040193,-150.0,0.00041951,2]
[340149007,1728681040203,-150.0,0.00041954,2]
[340149008,1728681040212,-150.0,0.00041961,2]
[340149009,1728681040222,-150.0,0.00041971,2]
[340149010,1728681040231,-150.0,0.00041977,2]
[340149011,1728681040240,-150.0,0.00041978,2]
[340149012,1728681040250,-150.0,0.00041985,2]
[340149013,1728681040259,-150.0,0.00041987,2]
[340149014,1728681040269,-150.0,0.00041988,2]
[340149016,1728681040278,-150.0,0.00041989,2]
[340149017,1728681040287,-150.0,0.00041991,2]
[340149019,1728681040297,-150.0,0.00042004,2]
[340149021,1728681040306,-150.0,0.00042008,2]
[340149023,1728681040316,-150.0,0.00042023,2]
[340149024,1728681040325,-150.0,0.00042026,2]
[340149025,1728681040336,-150.0,0.00042032,2]
[340149026,1728681040345,-150.0,0.00042033,2]
[340149027,1728681040355,-150.0,0.00042061,2]
[340149028,1728681040364,-150.0,0.00042062,2]
[340149029,1728681040374,-150.0,0.00042063,2]
[340149030,1728681040383,-150.0,0.00042068,2]
[340149031,1728681040392,-150.0,0.00042081,2]
[340149032,1728681040401,-150.0,0.00042083,2]
[340149033,1728681040410,-150.0,0.00042085,2]
[340149034,1728681040420,-150.0,0.00042088,2]
[340149035,1728681040429,-150.0,0.0004209,2]
[340149036,1728681040439,-150.0,0.0004211,2]
[340149037,1728681040448,-7742.30201522,0.0004238,8]
[340149038,1728681040477,-150.0,0.00041932,2]
[340149039,1728681040487,-150.0,0.00041965,2]
[340149040,1728681040496,-534.30484756,0.0004238,8]
[340149041,1728681040511,-150.0,0.00041738,2]
[340149042,1728681040520,-270.525589,0.0004238,8]
[340149043,1728681040532,-14014.00000121,0.0004238,8]
[340149044,1728681040544,-35039.87520665,0.0004238,8]
[340149045,1728681040556,-27479.91280188,0.0004238,8]
[340149046,1728681040567,-13942.43722143,0.0004238,8]
[340149047,1728681040578,-3946.99388915,0.0004238,8]
[340149048,1728681040590,-337.374,0.0004238,8]
[340149049,1728681040605,-1000.0,0.000415,30]
[340149050,1728681040615,-90.97554854,0.0004238,8]
[340149051,1728681040626,-4515.90098311,0.0004238,8]
[340149052,1728681040639,-13057.7601101,0.0004238,8]
[340149053,1728681040651,-1589.9884,0.0004238,8]
[340149068,1728681042932,-1963.95623651,0.0004238,8]
[340149069,1728681042945,-4133.29457926,0.0004238,8]
[340149070,1728681043044,-2854.01146556,0.0004238,8]
[340149071,1728681043101,-15014.88931976,0.0004238,8]
[340149072,1728681043114,-520.26401847,0.0004238,8]
[340149073,1728681043127,-28362.31441931,0.0004238,8]
[340149074,1728681043137,-80380.5254662,0.0004239,8]
[340149075,1728681043147,-8828.81636746,0.0004239,8]
[340149076,1728681043159,-111611.39722054,0.0004239,8]
[340149077,1728681043171,-1758.8238,0.000424,2]
[340149078,1728681043181,-2946.7393,0.000424,2]
[340149079,1728681043192,-10963.03967946,0.000424,2]
[340149080,1728681043213,-4342.00319205,0.000424,2]
[340149081,1728681043224,-526.83208673,0.000424,2]
[340149082,1728681043235,-3162.35798679,0.000424,2]
[340149083,1728681043246,-6117.5106,0.000424,2]
[340149084,1728681043258,-802.06340159,0.000424,2]
[340149085,1728681043269,-3918.7910805,0.000424,2]
[340149086,1728681043281,-3079.79298689,0.000424,2]
[340149091,1728681045848,-346.76974357,0.000424,2]
[340149092,1728681045960,-5800.7172,0.000424,2]
[340149093,1728681045973,-36145.24384162,0.000424,2]
[340149094,1728681045984,-34253.45091569,0.000424,2]
[340149095,1728681046126,-4553.8190213,0.000424,2]
[340149096,1728681046137,-2074.30745586,0.000424,2]
[340149097,1728681046147,-432.77116256,0.000424,2]
[340149098,1728681046183,-616.0,0.0003,20]
[340149099,1728681046192,-234.0,0.000424,2]
[340149108,1728681954482,2372.41593424,0.0001,2]
[340149112,1728682047978,550.0,0.0001,2]
[340149156,1728682231987,-150.0,0.00010899,2]
[340149157,1728682231997,-1154.26906258,0.000109,2]
[340149158,1728682232007,-1137.99310148,0.000109,2]
[340149159,1728682232017,-1250.0,0.000109,2]
[340149160,1728682232026,-1250.0,0.000109,2]
[340149161,1728682232036,-393.63044418,0.000109,2]
[340149162,1728682232046,-4116.92167623,0.000109,2]
[340149163,1728682232055,-10852.0195773,0.000109,2]
[340149164,1728682232064,-1856.56978195,0.000109,2]
[340149165,1728682232073,-1838.97731023,0.000109,2]
[340149166,1728682232083,-174.65,0.00010959,2]
[340149167,1728682232099,-162.41,0.00010959,2]
[340149168,1728682232111,-866.61,0.00010959,2]
[340149169,1728682232121,-505.06779306,0.00010973,2]
[340149170,1728682232131,-226.02918517,0.00010973,2]
[340149171,1728682232140,-500.0,0.00010973,2]
[340149172,1728682232150,-877.7,0.00010997,2]
[340149173,1728682232159,-194.96305501,0.00010999,2]
[340149174,1728682232169,-500.0,0.00010999,2]
[340149175,1728682232179,-500.0,0.00010999,2]
[340149176,1728682232189,-632.14013794,0.00010999,2]
[340149177,1728682232198,-500.0,0.00010999,2]
[340149178,1728682232208,-595.71787869,0.00010999,2]
[340149179,1728682232218,-500.0,0.00010999,2]
[340149180,1728682232227,-500.0,0.00010999,2]
[340149181,1728682232237,-500.0,0.00010999,2]
[340149182,1728682232247,-500.0,0.00010999,2]
[340149183,1728682232257,-500.0,0.00010999,2]
[340149184,1728682232266,-500.0,0.00010999,2]
[340149185,1728682232276,-500.0,0.00010999,2]
[340149186,1728682232285,-500.0,0.00010999,2]
[340149187,1728682232295,-500.0,0.00010999,2]
[340149189,1728682232305,-500.0,0.00010999,2]
[340149191,1728682232314,-500.0,0.00010999,2]
[340149193,1728682232324,-500.0,0.00010999,2]
[340149195,1728682232333,-500.0,0.00010999,2]
[340149197,1728682232342,-159540.54602648,0.00011,2]
[340149199,1728682232354,-1157.66053093,0.00011,2]
[340149201,1728682232366,-1709.87048133,0.00011,2]
[340149203,1728682232378,-2215.45501744,0.00011,2]
[340149206,1728682232391,-1161.35257624,0.00011,2]
[340149208,1728682232403,-1184.24886143,0.00011,2]
[340149210,1728682232414,-654.85,0.00011,2]
[340149212,1728682232426,-585.90545,0.00011,2]
[340149214,1728682232437,-471.96913738,0.00011,2]
[340149216,1728682232450,-1357.03628517,0.00011,2]
[340149219,1728682232461,-5911.97964083,0.00011,2]
[340149221,1728682232473,-513147.05861474,0.00011,2]
[340149223,1728682232484,-372.954,0.00011,2]
[340149230,1728682238297,-2082763.17610142,0.00011,2]
[340149231,1728682238309,-2633250.04053125,0.00011,2]
[340149232,1728682238320,-9416211.40056376,0.00011,2]
[340149233,1728682238468,-3157.35,0.00011,2]
[340149234,1728682238480,-500.0,0.00011,2]
[340149235,1728682238528,-11787.49999962,0.00011,2]
[340149308,1728682240191,-1893.35859526,0.00011,2]
[340149309,1728682240253,-1038.93937347,0.00011,2]
[340149310,1728682240314,-550.0,0.00011,2]
[340149337,1728682243164,-281.326473,0.00011,2]
[340149338,1728682243336,-260.02796529,0.00011,2]
[340149350,1728682246111,-1010.186,0.00011,2]
[340149351,1728682246225,-666.2799,0.00011,2]
[340149359,1728682630696,862.19,9.51e-05,2]
[340149370,1728683255612,826.95,8.88e-05,2]
[340149456,1728683432241,-1000.0,0.00010796,2]
[340149457,1728683432254,-250.0,0.00010864,2]
[340149458,1728683432264,-150.0,0.00010899,2]
[340149459,1728683432274,-300.0,0.00010899,2]
[340149460,1728683432284,-159.10157046,0.000109,2]
[340149461,1728683432298,-210.91376579,0.000109,2]
[340149462,1728683432308,-472.0497,0.000109,2]
[340149463,1728683432318,-1000.0,0.000109,2]
[340149464,1728683432327,-5611.1358,0.000109,2]
[340149465,1728683432338,-154.81245776,0.000109,2]
[340149466,1728683432347,-7781.53988242,0.000109,2]
[340149467,1728683432356,-250.0,0.00010914,2]
[340149468,1728683432366,-723.02,0.00010924,2]
[340149469,1728683432375,-198.8,0.00010939,2]
[340149470,1728683432384,-164.78,0.00010959,2]
[340149471,1728683432393,-250.0,0.00010959,2]
[340149472,1728683432403,-158.18,0.00010959,2]
[340149473,1728683432411,-2000.0,0.00010959,2]
[340149474,1728683432420,-150.0,0.00010959,2]
[340149475,1728683432430,-500.0,0.00010973,2]
[340149476,1728683432439,-21965.01185127,0.00010999,2]
[340149477,1728683432448,-499.99,0.00010999,2]
[340149478,1728683432457,-13576.50017041,0.00011,2]
[340149488,1728683438681,-257.8963,0.00011,2]
[340149524,1728683443296,-12620.96804001,0.00011,2]
[340149525,1728683443594,-1092364.88573303,0.00011,2]
[340149526,1728683443610,-30401.06291955,0.00011,2]
[340149534,1728683771216,793.55,8.973e-05,2]
[340149535,1728683857387,550.0,0.0001,2]
[340149536,1728684323139,761.81,8.722e-05,2]
[340149597,1728684631480,-900.0,0.00010529,2]
[340149598,1728684631495,-446.45853724,0.00010529,2]
[340149599,1728684631507,-2862.03116841,0.00010529,2]
[340149600,1728684631520,-666.91029435,0.00010529,2]
[340149601,1728684631532,-250.0,0.0001055,2]
[340149602,1728684631543,-185.96,0.00010613,2]
[340149603,1728684631555,-1000.0,0.00010614,2]
[340149604,1728684631566,-271.731,0.0001078,2]
[340149605,1728684631578,-250.0,0.0001079,2]
[340149606,1728684631589,-383.45,0.00010865,2]
[340149607,1728684631600,-150.0,0.00010899,2]
[340149608,1728684631611,-116.6000711,0.000109,2]
[340149609,1728684631763,-59.3211289,0.000109,2]
[340149610,1728684631773,-1724.4573,0.000109,2]
[340149611,1728684631783,-159.10157045,0.000109,2]
[340149612,1728684631792,-1000.0,0.000109,2]
[340149613,1728684631803,-203.83166965,0.000109,2]
[340149614,1728684631813,-8008.3397,0.000109,2]
[340149615,1728684631822,-154.81245774,0.000109,2]
[340149617,1728684631833,-7003.38589425,0.000109,2]
[340149619,1728684631843,-250.0,0.00010959,2]
[340149621,1728684631854,-174.65,0.00010959,2]
[340149623,1728684631864,-3882.29,0.00010959,2]
[340149625,1728684631875,-370.05,0.00010959,2]
[340149627,1728684631887,-499.99,0.00010959,2]
[340149628,1728684631898,-761.81,0.00010986,2]
[340149629,1728684631908,-500.0,0.00010999,2]
[340149630,1728684631919,-642.49809655,0.00010999,2]
[340149631,1728684631931,-500.0,0.00010999,2]
[340149632,1728684631942,-343.96865319,0.00010999,2]
[340149633,1728684631953,-136923.29260878,0.00011,2]
[340149634,1728684631975,-766.71121484,0.00011,2]
[340149636,1728684637688,-469.50530869,0.00011,2]
[340149637,1728684637715,-458.52641286,0.00011,2]
[340149638,1728684637728,-537.0,0.00011,2]
[340149639,1728684637745,-64802.65779289,0.00011,2]
[340149640,1728684637760,-5488.263201,0.00011,2]
[340149673,1728684639556,-31160.10263208,0.00011,2]
[340149685,1728684642527,-69065.41129446,0.00011,2]
[340149697,1728684642631,-13909.36514515,0.00011,2]
[340149698,1728684642744,-21062.640611,0.00011,2]
[340149699,1728684642758,-314.20237276,0.00011,2]
[340149708,1728684645696,-39725.18279569,0.00011,2]
[340149709,1728684645790,-479.5774821,0.00011,2]
[340149723,1728684846828,718.62,9.026e-05,2]
[340149725,1728685307860,250.0,9.877e-05,2]
[340149726,1728685367651,174.5,9.926e-05,2]
[340149727,1728685441264,682.68,8.219e-05,2]
[340149728,1728685534714,229.97246286,0.0001,2]
[340149729,1728685613844,306.76,9.859e-05,2]
[340149747,1728685665285,550.0,0.0001,2]
[340150042,1728685776027,250.0,9.861e-05,2]
[340150044,1728685785140,1006.0,9.936e-05,2]
[340150058,1728685831633,-163.24,0.0001028,2]
[340150059,1728685831643,-163.24,0.00010286,2]
[340150060,1728685831652,-163.24,0.00010293,2]
[340150061,1728685831662,-163.24,0.00010299,2]
[340150062,1728685831671,-615.2804071,0.00010305,2]
[340150063,1728685831682,-163.24,0.00010306,2]
[340150064,1728685831692,-163.24,0.00010312,2]
[340150065,1728685831701,-163.24,0.00010318,2]
[340150066,1728685831711,-163.24,0.00010325,2]
[340150067,1728685831721,-163.24,0.00010331,2]
[340150068,1728685831732,-499.99,0.00010331,2]
[340150069,1728685831748,-300.0,0.0001046,2]
[340150070,1728685831757,-1557.57894188,0.00010461,2]
[340150071,1728685831769,-18676.46105812,0.00010461,2]
[340150072,1728685831778,-682.68,0.00010472,2]
[340150073,1728685831789,-1000.0,0.00010535,2]
[340150074,1728685831798,-150.0,0.00010799,2]
[340150075,1728685831807,-24261.5639,0.000108,2]
[340150076,1728685831817,-1000.0,0.000108,2]
[340150077,1728685831826,-578.41,0.00010866,2]
[340150078,1728685831836,-1742.74470412,0.00010899,2]
[340150079,1728685831845,-3587.20441327,0.00010899,2]
[340150080,1728685831856,-2715.84289151,0.00010899,2]
[340150081,1728685831866,-1345.81770507,0.000109,2]
[340150082,1728685831876,-11839.49712505,0.000109,2]
[340150083,1728685831891,-627.2,0.000109,2]
[340150099,1728685837808,-519.00760676,0.000109,2]
[340150100,1728685837898,-37010.14324801,0.000109,2]
[340150101,1728685838323,-34824.8091811,0.000109,2]
[340150141,1728685839754,-5467.13881869,0.000109,2]
[340150142,1728685839843,-34221.86238627,0.000109,2]
[340150143,1728685839856,-64524.22854119,0.000109,2]
[340150144,1728685839868,-27053.90907254,0.000109,2]
[340150165,1728685845663,-407.9640565,0.000109,2]
[340150166,1728685845674,-6495.16816358,0.000109,2]
[340150167,1728685845813,-1000.0,0.000109,2]
[340150168,1728685845902,-19663.25409524,0.000109,2]
[340150169,1728685845912,-1000.0,0.000109,2]
[340150170,1728685845921,-174.7128597,0.000109,2]
[340150171,1728685845930,-154.81245774,0.000109,2]
[340150172,1728685845941,-161.11,0.00010959,2]
[340150173,1728685845954,-150.0,0.00010959,2]
[340150174,1728685845964,-250.0,0.00010959,2]
[340150175,1728685845973,-164.78,0.00010959,2]
[340150176,1728685845982,-296.04,0.00010959,2]
[340150178,1728685845991,-237.47651731,0.0001099,2]
[340150179,1728685846000,-12313.3569084,0.00010995,2]
[340150181,1728685846010,-652.31286323,0.00010999,2]
[340150182,1728685846019,-299.74866759,0.00010999,2]
[340150183,1728685846028,-500.0,0.00010999,2]
[340150184,1728685846037,-3406.1642408,0.00011,2]
[340150185,1728685846048,-5824.22325599,0.00011,2]
[340150214,1728685953089,349.2404,0.0001018,2]
[340150215,1728685976690,622.38,9.114e-05,2]
[340150217,1728686617690,599.22,8.685e-05,2]
[340150218,1728686714315,150.0,9.888e-05,2]
[340150410,1728687031910,-250.0,0.00010537,2]
[340150412,1728687031920,-250.0,0.00010537,2]
[340150414,1728687031929,-462.72,0.00010566,2]
[340150416,1728687031939,-150.0,0.00010799,2]
[340150418,1728687031949,-300.0,0.00010799,2]
[340150420,1728687031959,-6039.94057451,0.000108,2]
[340150432,1728687032057,-325.22741117,0.000108,2]
[340150434,1728687032067,-1460.73645019,0.000108,2]
[340150438,1728687032095,-31503.64205691,0.000108,2]
[340150440,1728687032107,-2889.0743811,0.000108,2]
[340150527,1728687038102,-6341.27169742,0.000108,2]
[340150664,1728687039844,-12216.21123754,0.000108,2]
[340150714,1728687042900,-150159.89398837,0.000108,2]
[340150718,1728687043112,-34064.00220279,0.000108,2]
[340150719,1728687043122,-3071.8389,0.000108,2]
[340150720,1728687043131,-1000.0,0.000108,2]
[340150721,1728687043141,-38740.221,0.000108,2]
[340150722,1728687043151,-1000.0,0.00010873,2]
[340150723,1728687043161,-5672.74257432,0.00010899,2]
[340150724,1728687043170,-174.71285966,0.000109,2]
[340150725,1728687043180,-154.81245774,0.000109,2]
[340150726,1728687043189,-599.22,0.00010949,2]
[340150727,1728687043198,-158.54,0.00010959,2]
[340150728,1728687043207,-250.0,0.00010959,2]
[340150729,1728687043217,-499.99,0.00010959,2]
[340150730,1728687043226,-236.83,0.00010959,2]
[340150731,1728687043235,-197.60350103,0.00010986,2]
[340150732,1728687043245,-10063.6548644,0.00010997,2]
[340150733,1728687043253,-34.57132169,0.00010997,2]
[340150734,1728687043265,-625.51,0.00010997,2]
[340150751,1728687045994,-471.0791062,0.000109,2]
[340150752,1728687046004,-11452.99359411,0.00010997,2]
[340150753,1728687046030,-1561.9,0.00010997,2]
[340150764,1728687146073,1300.0,0.000123,5]
[340150765,1728687149953,940.72322742,0.00010991,3]
[340150766,1728687173270,547.26,9.099e-05,2]
[340150773,1728687473090,550.0,0.0001,2]
[340150775,1728687509439,250.0,0.00010195,2]
[340150777,1728687529690,4346.61,0.00010195,2]
[340150778,1728687534860,500.0,0.00010195,2]
[340150779,1728687548752,1559.635138,0.00010231,2]
[340150780,1728687604460,-250.0,0.00010283,2]
[340150781,1728687604485,-156.84,0.00010359,2]
[340150782,1728687604508,-245.4,0.00010398,2]
[340150783,1728687604531,-1000.0,0.00010433,2]
[340150784,1728687604553,-150.0,0.00010599,2]
[340150785,1728687604574,-300.0,0.00010599,2]
[340150786,1728687604596,-7897.76,0.000106,2]
[340150790,1728687640078,-4499.7422,0.000105,2]
[340150791,1728687640098,-5500.2578,0.000106,2]
[340150792,1728687651286,-10000.0,0.000106,2]
[340150793,1728687667745,152.07,8.425e-05,2]
[340150797,1728687808398,527.85,8.72e-05,2]
[340151039,1728688231963,-250.0,0.0001034,2]
[340151041,1728688231972,-66.41,0.00010349,2]
[340151052,1728688232099,-119.16,0.00010349,2]
[340151053,1728688232110,-250.0,0.00010399,2]
[340151054,1728688232119,-156.84,0.00010406,2]
[340151055,1728688232129,-65.8028466,0.000105,2]
[340151056,1728688232141,-195.8849534,0.000105,2]
[340151057,1728688232150,-150.0,0.00010599,2]
[340151058,1728688232160,-63597.46450236,0.000106,2]
[340151059,1728688232170,-8822.59391753,0.000106,2]
[340151071,1728688238142,-4181.92378011,0.000106,2]
[340151072,1728688238151,-7924.9599,0.000106,2]
[340151073,1728688238161,-5752.5784,0.000106,2]
[340151074,1728688238170,-262.2927,0.000106,2]
[340151075,1728688238179,-326.1077,0.000106,2]
[340151076,1728688238188,-7500.0,0.000106,2]
[340151077,1728688238197,-6736.9809,0.000106,2]
[340151078,1728688238206,-200.0,0.00010676,2]
[340151079,1728688238215,-33127.71846016,0.000107,2]
[340151080,1728688238440,-81975.31119264,0.000107,2]
[340151204,1728688240127,-628.31545513,0.000107,2]
[340151205,1728688240139,-300.0,0.000107,2]
[340151206,1728688240167,-365.805,0.000107,2]
[340151207,1728688240178,-3224.27037394,0.000107,2]
[340151208,1728688240189,-23776.19389263,0.000107,2]
[340151408,1728688243326,-42770.0773255,0.000107,2]
[340151409,1728688243338,-1000.0,0.000107,2]
[340151410,1728688243349,-499.99,0.00010892,2]
[340151411,1728688243362,-150.99,0.00010892,2]
[340151412,1728688243372,-233.59007142,0.00010892,2]
[340151413,1728688243383,-233.5900714,0.00010896,2]
[340151414,1728688243393,-633.2,0.00010897,2]
[340151415,1728688243404,-4230.4916,0.000109,2]
[340151416,1728688243416,-174.71285966,0.000109,2]
[340151417,1728688243426,-217.12067785,0.000109,2]
[340151418,1728688243436,-315.42493254,0.000109,2]
[340151419,1728688243445,-362.50153573,0.000109,2]
[340151420,1728688243455,-233.5900714,0.000109,2]
[340151421,1728688243465,-168.12,0.00010959,2]
[340151422,1728688243474,-189.46,0.00010959,2]
[340151423,1728688243483,-150.0,0.00010959,2]
[340151424,1728688243493,-161.11,0.00010959,2]
[340151425,1728688243502,-250.0,0.00010959,2]
[340151426,1728688243512,-176.93,0.00010959,2]
[340151427,1728688243522,-527.85,0.00010984,2]
[340151428,1728688243531,-176.34629431,0.0001099,2]
[340151429,1728688243540,-130439.2756466,0.00010991,2]
[340151430,1728688243550,-23682.7333057,0.00010991,2]
[340151431,1728688243560,-559.82406731,0.00010991,2]
[340151432,1728688243571,-130849.4455116,0.00010992,2]
[340151433,1728688243580,-131259.6153766,0.00010992,2]
[340151434,1728688243589,-23757.2043074,0.00010992,2]
[340151435,1728688243599,-23831.6753092,0.00010992,2]
[340151436,1728688243609,-23906.1463109,0.00010992,2]
[340151437,1728688243619,-153.48537958,0.00010999,2]
[340151438,1728688243628,-997.0,0.00011,2]
[340151439,1728688243638,-3174587.82771973,0.00011,2]
[340151440,1728688243649,-55625.94710524,0.00011,2]
[340151441,1728688243661,-9956.95801704,0.00011,2]
[340151446,1728688246110,-1887.19422719,0.00011,2]
[340151447,1728688246150,-4525.64004641,0.00011,2]
[340151448,1728688246181,-6260.35325816,0.00011,2]
[340151453,1728688383951,483.02,8.973e-05,2]
[340151456,1728688986158,466.82,8.445e-05,2]
[340151499,1728689279909,550.0,0.0001,2]
[340151500,1728689288818,200.0,9.95e-05,2]
[340151585,1728689432199,-196.32,0.00010342,2]
[340151586,1728689432208,-160.0,0.00010363,2]
[340151587,1728689432217,-250.0,0.00010379,2]
[340151588,1728689432226,-250.0,0.00010441,2]
[340151589,1728689432235,-300.0,0.00010499,2]
[340151590,1728689432244,-150.0,0.00010499,2]
[340151591,1728689432254,-1901.4562,0.000105,2]
[340151592,1728689432264,-181.2238,0.000105,2]
[340151593,1728689432275,-3.98681951,0.000105,2]
[340151594,1728689432284,-1470.19800961,0.000105,2]
[340151595,1728689432323,-398.2,0.000105,2]
[340151596,1728689432335,-8296.53819039,0.000105,2]
[340151597,1728689432344,-1428.2992,0.000105,2]
[340151598,1728689432354,-6276.17956382,0.000105,2]
[340151599,1728689432463,-843.79115646,0.000105,2]
[340151607,1728689438320,-1186.962612,0.0001029,2]
[340151608,1728689438330,-619.14041832,0.000105,2]
[340151609,1728689438436,-9449.3258614,0.000105,2]
[340151610,1728689438446,-826.5722,0.000105,2]
[340151611,1728689438455,-370.17,0.00010555,2]
[340151612,1728689438464,-100000.0,0.000106,2]
[340151613,1728689438473,-38509.7304,0.000106,2]
[340151614,1728689438482,-827.9067,0.000106,2]
[340151615,1728689438491,-595.8126,0.000106,2]
[340151616,1728689438499,-1000.0,0.000106,2]
[340151617,1728689438509,-15232.1886,0.000106,2]
[340151618,1728689438517,-213.8018,0.000106,2]